[Event "81st Georgian Women-ch 2024"]
[Site "Tbilisi"]
[Date "2024.02.10"]
[Round "2.2"]
[White "Lomaia, Diana"]
[Black "Tsetskhladze, Mariam"]
[Result "1/2-1/2"]
[ECO "E59"]
[WhiteElo "2037"]
[BlackElo "1912"]
[Annotator "NA RC"]
[PlyCount "109"]
[EventDate "2024.02.09"]
[EventCountry "GEO"]
[SourceTitle "playchess.com"]
[Source "ChessBase"]
[SourceQuality "1"]
[TimeControl "5400+30"]

1. d4 {[%emt 0:00:03]} Nf6 {[%emt 0:00:44]} 2. c4 {[%emt 0:00:04]} e6 {[%emt 0:00:05]} 3. Nc3 {[%emt 0:00:05]} Bb4 {[%emt 0:00:09]} 4. Nf3 {[%emt 0:00:05]} O-O {[%emt 0:00:14]} 5. e3 {[%emt 0:00:24]} d5 {[%emt 0:01:42]} 6. Bd3 {[%emt 0:00:36]} dxc4 {[%emt 0:02:26]} 7. Bxc4 {[%emt 0:00:06]} c5 {[%emt 0:05:12]} 8. O-O {[%emt 0:00:28]} Nc6 {[%emt 0:12:40]} 9. a3 {[%emt 0:06:16]} Bxc3 {[%emt 0:02:38]} 10. bxc3 {[%emt 0:00:06]} Na5 {[%emt 0:07:46]} 11. Ba2 {[%emt 0:02:35]} c4 {[%emt 0:03:23]} 12. a4 {[%emt 0:03:20]} Qc7 {[%emt 0:06:36]} 13. Ba3 {[%emt 0:04:58]} Rd8 {[%emt 0:01:01]} 14. Ne5 {[%emt 0:00:21]} b6 {[%emt 0:08:16]} 15. Qc2 {[%emt 0:10:06]} Bb7 {[%emt 0:07:00]} 16. f3 {[%emt 0:01:35]} Rac8 {[%emt 0:09:33]} 17. e4 {[%emt 0:12:16]} h5 {[%emt 0:14:37]} 18. Rae1 {[%emt 0:02:38]} Nc6 {[%emt 0:04:40]} 19. f4 {[%emt 0:11:05]} Nxd4 {[%emt 0:08:04]} 20. cxd4 {[%emt 0:00:13]} Rxd4 {[%emt 0:00:05]} 21. Rd1 {[%emt 0:08:03]} Bxe4 {[%emt 0:01:22]} 22. Qc3 {[%emt 0:01:32]} Rxd1 {[%emt 0:00:28]} 23. Rxd1 {[%emt 0:00:02]} Nd5 {[%emt 0:02:02]} 24. Qd4 {[%emt 0:03:33]} f5 {[%emt 0:01:10]} 25. Bxc4 {[%emt 0:06:19]} Nxf4 {[%emt 0:00:30]} 26. Qd6 {[%emt 0:11:42]} Bd5 {[%emt 0:00:33]} 27. Qxc7 {[%emt 0:10:34]} Rxc7 {[%emt 0:00:01]} 28. Rc1 {[%emt 0:03:20]} Bxc4 {[%emt 0:00:59]} 29. Rxc4 {[%emt 0:00:30]} Rxc4 {[%emt 0:00:27]} 30. Nxc4 {[%emt 0:00:02]} Ne2+ {[%emt 0:00:26]} 31. Kf2 {[%emt 0:00:55]} Nc3 {[%emt 0:00:07]} 32. a5 {[%emt 0:01:50]} bxa5 {[%emt 0:00:12]} 33. Nxa5 {[%emt 0:00:07]} Kf7 {[%emt 0:01:16]} 34. Nc6 {[%emt 0:00:28]} Ne4+ {[%emt 0:00:28]} 35. Ke3 {[%emt 0:00:20]} g5 {[%emt 0:00:31]} 36. Nxa7 {[%emt 0:00:49]} h4 {[%emt 0:00:21]} 37. Nc6 {[%emt 0:00:49]} Kf6 {[%emt 0:00:43]} 38. Bb2+ {[%emt 0:00:15]} Kf7 {[%emt 0:00:07]} 39. Ne5+ {[%emt 0:00:19]} Ke7 {[%emt 0:00:31]} 40. Ba3+ {[%emt 0:00:00]} Kf6 {[%emt 0:00:00]} 41. Nd7+ {[%emt 0:00:00]} Kf7 {[%emt 0:00:00]} 42. Bb4 {[%emt 0:00:00]} Kg6 {[%emt 0:00:00]} 43. Kf3 {[%emt 0:00:00]} Kf7 {[%emt 0:00:00]} 44. h3 {[%emt 0:00:00]} Ng3 {[%emt 0:00:00]} 45. Ne5+ {[%emt 0:00:00]} Kf6 {[%emt 0:00:00]} 46. Bc3 {[%emt 0:00:00]} Ne4 {[%emt 0:00:00]} 47. Bb2 {[%emt 0:00:00]} Ke7 {[%emt 0:00:00]} 48. Nc4 {[%emt 0:00:00]} Kd7 {[%emt 0:00:00]} 49. Bc1 {[%emt 0:00:00]} Ke7 {[%emt 0:00:00]} 50. Be3 {[%emt 0:00:00]} Kf6 {[%emt 0:00:05]} 51. Bd4+ {[%emt 0:00:00]} Ke7 {[%emt 0:00:54]} 52. Be5 {[%emt 0:00:31]} Kd7 {[%emt 0:00:39]} 53. Bg7 {[%emt 0:00:34]} Ke7 {[%emt 0:01:16]} 54. Be5 {[%emt 0:00:34]} Kd7 {[%emt 0:00:05]} 55. Bg7 {[%emt 0:07:32]} 1/2-1/2

[Event "81st Georgian Women-ch 2024"]
[Site "Tbilisi"]
[Date "2024.02.10"]
[Round "2.3"]
[White "Javakhishvili, Lela"]
[Black "Batsiashvili, Nino"]
[Result "1-0"]
[ECO "E11"]
[WhiteElo "2433"]
[BlackElo "2451"]
[Annotator "TA"]
[PlyCount "105"]
[EventDate "2024.02.09"]
[EventCountry "GEO"]
[SourceTitle "playchess.com"]
[Source "ChessBase"]
[SourceQuality "1"]
[TimeControl "5400+30"]

{[%evp 44,105,77,77,111,62,49,19,135,89,90,72,160,75,103,91,127,100,110,47,55,56,135,106,266,238,365,343,345,315,366,280,341,337,324,345,388,363,643,627,673,672,722,700,741,712,692,641,816,831,806,743,1078,1029,1037,1078,1083,1139,5157,5097,29996,29997,29997,710]} 1. d4 {[%emt 0:00:05]} Nf6 {[%emt 0:00:11]} 2. c4 {[%emt 0:00:11]} e6 {[%emt 0:00:03]} 3. Nf3 {[%emt 0:00:45]} Bb4+ {[%emt 0:00:05]} 4. Bd2 {[%emt 0:00:48]} Qe7 {[%emt 0:00:19]} 5. g3 {[%emt 0:00:25]} Bxd2+ {[%emt 0:01:08]} 6. Qxd2 {[%emt 0:00:42]} Nc6 {[%emt 0:00:23] E11: Bogo-Indian.} 7. Nc3 {[%emt 0:01:54]} d5 {[%emt 0:01:37]} 8. cxd5 {[%emt 0:12:26]} exd5 {[%emt 0:00:12]} 9. Bg2 {[%emt 0:00:06]} O-O {[%emt 0:01:09]} 10. O-O {[%emt 0:00:08]} Bf5 {[%emt 0:03:54]} 11. Nh4 {[%emt 0:05:25]} Be6 {[%emt 0:08:54]} 12. Rac1 {[%emt 0:02:49]} Rad8 {[%emt 0:00:42]} 13. e3 $146 {[%emt 0:01:32]} ({Predecessor:} 13. Rfd1 a6 14. Na4 Na7 15. Qc2 Nb5 16. Nf3 Bg4 17. Nc5 c6 18. h3 Bh5 19. a4 {1-0 Camarena Gimenez,R (2329)-Villar Reymundo,J (2198) Alcoy Tabiya 8th 2019 (6)}) 13... g5 {[%emt 0:12:37]} 14. Nf3 {[%emt 0:00:24]} Ne4 {[%emt 0:00:04]} 15. Qe2 {[%emt 0:02:41]} Bg4 {[%emt 0:18:44]} 16. Qb5 {[%emt 0:24:16]} Bxf3 {[%emt 0:02:19]} 17. Bxf3 {[%emt 0:00:05]} Nd2 {[%emt 0:00:01]} 18. Bxd5 {[%emt 0:00:11]} Nxf1 {[%emt 0:00:44]} 19. Kxf1 {[%emt 0:01:50]} Rd6 {[%emt 0:03:09]} 20. Be4 {[%emt 0:12:07]} Rh6 {[%emt 0:09:28]} 21. Qf5 {[%emt 0:01:17]} Re8 {[%emt 0:04:56]} 22. Bb1 {[%emt 0:06:06]} f6 {[%emt 0:11:49]} 23. Kg1 {[%emt 0:04:08]} Qf7 {[%emt 0:03:17]} 24. Qd5 {[%emt 0:04:44]} ({White should try} 24. Ne4 $16) 24... Nd8 $14 {[%emt 0:03:07]} (24... Qxd5 25. Nxd5 Rf8 26. Nxc7 $16) 25. b4 {[%emt 0:05:16]} Ne6 {[%emt 0:01:59]} (25... Qxd5 $11 {remains equal.} 26. Nxd5 c6) 26. Qf3 {[%emt 0:03:29]} (26. Qxb7 $142 {[%cal Ob1f5]} Qh5 27. Qg2 (27. Qxa7 $2 Qxh2+ 28. Kf1 Qh1+ 29. Ke2 Qxc1 $19)) 26... Kh8 {[%emt 0:03:36]} 27. a4 {[%emt 0:03:09]} Ng7 {[%emt 0:01:53] [#]} (27... c6 $142) 28. Ba2 {[%emt 0:01:33]} (28. Nb5 $142 $1) 28... Qg6 {[%emt 0:00:46]} 29. Qxb7 {[%emt 0:00:30]} f5 {[%emt 0:00:05]} 30. Qf3 {[%emt 0:01:35]} (30. Qxa7 Qh5 31. Bd5 (31. Qxc7 $2 Qxh2+ 32. Kf1 Qh1+ 33. Ke2 Qxc1 $19) 31... f4 32. exf4 (32. gxf4 $2 Qg4+ 33. Bg2 gxf4 $19) 32... c6 $19) 30... f4 {[%emt 0:00:10]} 31. Bb1 {[%emt 0:00:53]} (31. exf4 $16 {Strongly threatening Bb1.} Qf5 32. Nb5) 31... Qe6 $1 $14 {[%emt 0:04:26]} 32. Ne4 {[%emt 0:01:27]} (32. gxf4 gxf4 33. Qxf4 Rf6 34. Qxc7 Rxf2 $17) 32... fxe3 {[%emt 0:02:28]} (32... Qh3 $14 33. Qg2 (33. Rxc7 $2 Ne6 $19) 33... Qxg2+ 34. Kxg2 fxe3) 33. fxe3 $16 {[%emt 0:02:06]} (33. Nxg5 Rf6 34. Qxe3 Qxe3 35. fxe3 Rxe3 $14) (33. Qxe3 $2 Qh3 34. d5 Qxh2+ 35. Kf1 Nf5 $19) 33... Qh3 $2 {[%emt 0:01:13]} (33... Qe7 $16 {was necessary.}) 34. Qf2 $18 {[%emt 0:00:03]} (34. Nxg5 $2 Qxh2+ 35. Kf1 Qh1+ 36. Qxh1 Rxh1+ 37. Ke2 Rxc1 $19) 34... Ne6 {[%emt 0:00:29]} (34... Qf5 $142 35. Qe2 (35. Rxc7 Qxf2+ 36. Nxf2 Rb6 $18) 35... Qf7 (35... Rxe4 $2 36. Rf1 $18)) 35. d5 {[%emt 0:00:34]} Rf8 {[%emt 0:00:16]} 36. Qg2 {[%emt 0:01:19]} ({Resist} 36. Qb2+ Ng7 37. Nxg5 Qg4) 36... Qxg2+ {[%emt 0:00:10]} 37. Kxg2 {[%emt 0:00:03]} Ng7 {[%emt 0:00:04]} 38. Rxc7 {[%emt 0:00:44]} Nf5 {[%emt 0:00:04]} 39. Rc3 {[%emt 0:00:18]} (39. Nxg5 $2 {is a self mate.} Nxe3+ 40. Kh1 Rf1#) 39... Rb6 {[%emt 0:02:06]} 40. b5 {[%emt 0:00:00]} a6 $2 {[%emt 0:00:00]} (40... Rg8 41. Kf3 g4+ 42. Kf4 Nd6 43. Nxd6 Rxd6) 41. Nc5 $18 {[%emt 0:00:00]} Rd6 {[%emt 0:00:00]} 42. Ne6 {[%emt 0:00:00]} Nxe3+ {[%emt 0:00:00]} 43. Rxe3 {[%emt 0:00:00]} Rb8 {[%emt 0:00:00]} 44. Be4 {[%emt 0:00:00]} axb5 {[%emt 0:00:00]} 45. Nxg5 {[%emt 0:00:00]} Ra6 {[%emt 0:00:00]} 46. axb5 {[%emt 0:00:00]} Rxb5 {[%emt 0:00:00]} 47. Re2 {[%emt 0:00:00]} Rab6 {[%emt 0:00:00]} 48. Nxh7 {[%emt 0:00:00]} (48. Bxh7 Rxd5 49. Re8+ Kg7 50. Rg8+ Kh6 $18) 48... Kg7 {[%emt 0:00:00]} 49. h4 {[%emt 0:00:00]} Rb3 {[%emt 0:00:00]} 50. Ng5 {[%emt 0:00:00]} Ra3 {[%emt 0:00:00]} 51. Rf2 {[%emt 0:00:00]} Rbb3 {[%emt 0:00:00]} 52. Ne6+ {[%emt 0:00:00]} Kh6 {[%emt 0:00:00]} 53. Rf6+ {[%emt 0:00:00]} 1-0

[Event "81st Georgian Women-ch 2024"]
[Site "Tbilisi"]
[Date "2024.02.10"]
[Round "2.4"]
[White "Arabidze, Meri"]
[Black "Khotenashvili, Bella"]
[Result "1/2-1/2"]
[ECO "D02"]
[WhiteElo "2466"]
[BlackElo "2467"]
[Annotator "TA"]
[PlyCount "44"]
[EventDate "2024.02.09"]
[EventCountry "GEO"]
[SourceTitle "playchess.com"]
[Source "ChessBase"]
[SourceQuality "1"]
[TimeControl "5400+30"]

{[%evp 9,44,21,31,17,56,39,32,36,36,31,35,27,41,45,36,42,43,29,36,39,35,31,48,45,54,67,67,61,59,59,54,53,68,37,48,39,27]} 1. d4 {[%emt 0:00:02]} Nf6 {[%emt 0:00:12]} 2. Nf3 {[%emt 0:00:05]} g6 {[%emt 0:00:29]} 3. Nbd2 {[%emt 0:00:11]} d5 {[%emt 0:02:48]} 4. e3 {[%emt 0:00:08]} Bg7 {[%emt 0:00:12]} 5. b4 {[%emt 0:00:11]} a5 {[%emt 0:03:08]} 6. b5 {[%emt 0:00:09]} a4 {[%emt 0:00:21]} 7. Be2 {[%emt 0:02:46]} c5 {[%emt 0:03:49]} 8. bxc6 {[%emt 0:00:31]} bxc6 {[%emt 0:00:36]} 9. Ba3 {[%emt 0:01:48]} O-O {[%emt 0:06:28]} 10. O-O {[%emt 0:00:12]} Nbd7 {[%emt 0:05:22]} 11. c4 {[%emt 0:04:44]} Re8 {[%emt 0:04:10]} 12. Rb1 {[%emt 0:04:29][%cal Ba1b1,Bb1b4,Bb4a4,Ba4a3][%mdl 32]} Bf8 {[%emt 0:10:26]} 13. h3 {[%emt 0:05:31]} e6 {[%emt 0:14:57][%cal Be7e6,Be6e5,Be5e4][%mdl 32]} 14. Bxf8 {[%emt 0:02:34] White is slightly better.} Rxf8 {[%emt 0:00:26]} 15. Qc2 {[%emt 0:08:05]} Ba6 {[%emt 0:15:56]} 16. Rb4 {[%emt 0:04:21]} (16. Qxa4 Bxc4 17. Qd1 Bxe2 (17... Rxa2 18. Nxc4 dxc4 19. Bxc4 $11) (17... Bxa2 18. Rb2 $11) 18. Qxe2 Rxa2) 16... c5 {[%emt 0:01:14]} 17. Rxa4 {[%emt 1:03:13]} cxd4 {[%emt 0:03:06]} 18. Nxd4 {[%emt 0:00:00][%cal Oa4a6]} e5 {[%emt 0:06:02]} 19. N4f3 {[%emt 0:00:00]} Nc5 {[%emt 0:07:08]} 20. Ra3 {[%emt 0:00:00]} Qe7 {[%emt 0:03:55]} 21. Nb1 {[%emt 0:00:00] White is more active.} e4 {[%emt 0:05:56]} 22. Nd4 {[%emt 0:00:00]} Nd3 {[%emt 0:00:36] Weighted Error Value: White=0.06 (flawless) /Black=0.03 (flawless) .  Inaccurate:     	White=1     	Black=1      OK:         	White=5     	Black=7} 1/2-1/2

[Event "81st Georgian Women-ch 2024"]
[Site "Tbilisi"]
[Date "2024.02.10"]
[Round "2.5"]
[White "Mgeladze, Kesaria"]
[Black "Donghvani, Nia"]
[Result "1/2-1/2"]
[ECO "B45"]
[WhiteElo "2038"]
[BlackElo "2036"]
[Annotator "NA RC"]
[PlyCount "160"]
[EventDate "2024.02.09"]
[EventCountry "GEO"]
[SourceTitle "playchess.com"]
[Source "ChessBase"]
[SourceQuality "1"]
[TimeControl "5400+30"]

1. e4 {[%emt 0:00:03]} c5 {[%emt 0:00:05]} 2. Nf3 {[%emt 0:00:04]} e6 {[%emt 0:00:03]} 3. d4 {[%emt 0:00:06]} cxd4 {[%emt 0:00:04]} 4. Nxd4 {[%emt 0:00:04]} Nf6 {[%emt 0:00:36]} 5. Nc3 {[%emt 0:00:40]} Nc6 {[%emt 0:00:43]} 6. Nxc6 {[%emt 0:01:13]} bxc6 {[%emt 0:00:15]} 7. e5 {[%emt 0:00:05]} Nd5 {[%emt 0:00:04]} 8. Ne4 {[%emt 0:00:08]} Qc7 {[%emt 0:00:02]} 9. f4 {[%emt 0:00:08]} Qb6 {[%emt 0:00:05]} 10. c4 {[%emt 0:00:05]} Bb4+ {[%emt 0:00:21]} 11. Ke2 {[%emt 0:00:07]} f5 {[%emt 0:00:04]} 12. Nf2 {[%emt 0:00:06]} Ba6 {[%emt 0:01:01]} 13. Kf3 {[%emt 0:00:08]} Ne7 {[%emt 0:00:05]} 14. Be3 {[%emt 0:01:10]} Bc5 {[%emt 0:00:13]} 15. Bxc5 {[%emt 0:00:06]} Qxc5 {[%emt 0:00:04]} 16. Qd6 {[%emt 0:00:08]} Qb6 {[%emt 0:00:19]} 17. b3 {[%emt 0:00:18]} c5 {[%emt 0:01:01]} 18. Rd1 {[%emt 0:00:08]} Bb7+ {[%emt 0:00:07]} 19. Ke3 {[%emt 0:01:09]} Qxd6 {[%emt 0:01:36]} 20. exd6 {[%emt 0:01:45]} Ng8 {[%emt 0:00:27]} 21. Be2 {[%emt 0:03:45]} Rc8 {[%emt 0:17:24]} 22. Bh5+ {[%emt 0:27:47]} g6 {[%emt 0:01:33]} 23. Bf3 {[%emt 0:00:06]} Bxf3 {[%emt 0:07:58]} 24. Kxf3 {[%emt 0:00:14]} Nh6 {[%emt 0:03:20]} 25. h4 {[%emt 0:10:27]} Nf7 {[%emt 0:05:13]} 26. Nd3 {[%emt 0:18:46]} a5 {[%emt 0:22:54]} 27. g4 {[%emt 0:10:56]} fxg4+ {[%emt 0:01:36]} 28. Kxg4 {[%emt 0:00:07]} Nxd6 {[%emt 0:00:23]} 29. Ne5 {[%emt 0:07:04]} Ne4 {[%emt 0:04:33]} 30. Kf3 {[%emt 0:00:17]} Nf6 {[%emt 0:00:18]} 31. Rd6 {[%emt 0:00:47]} a4 {[%emt 0:17:35]} 32. bxa4 {[%emt 0:02:13]} Ra8 {[%emt 0:00:12]} 33. Rb1 {[%emt 0:03:45]} Ke7 {[%emt 0:01:00]} 34. Rd3 {[%emt 0:02:26]} Rhb8 {[%emt 0:04:14]} 35. Rdb3 {[%emt 0:06:15]} Rc8 {[%emt 0:04:20]} 36. Rb7 {[%emt 0:00:32]} Rxa4 {[%emt 0:00:06]} 37. Rd1 {[%emt 0:00:04]} Ra3+ {[%emt 0:00:02]} 38. Kg2 {[%emt 0:00:23]} Rxa2+ {[%emt 0:00:02]} 39. Kg1 {[%emt 0:00:40]} Rf8 {[%emt 0:06:18]} 40. Nxd7 {[%emt 0:00:00]} Nxd7 {[%emt 0:00:00]} 41. Rbxd7+ {[%emt 0:00:00]} Kf6 {[%emt 0:00:00]} 42. Rxh7 {[%emt 0:00:00]} Rc2 {[%emt 0:00:00]} 43. Rf1 {[%emt 0:00:00]} Rxc4 {[%emt 0:00:00]} 44. Kg2 {[%emt 0:00:00]} Rd8 {[%emt 0:00:00]} 45. h5 {[%emt 0:00:00]} Rd2+ {[%emt 0:00:00]} 46. Kg3 {[%emt 0:00:00]} Rc3+ {[%emt 0:00:00]} 47. Rf3 {[%emt 0:00:00]} Rcc2 {[%emt 0:00:00]} 48. Ra3 {[%emt 0:00:00]} Rg2+ {[%emt 0:00:47]} 49. Kf3 {[%emt 0:00:00]} Rh2 {[%emt 0:03:00]} 50. hxg6 {[%emt 0:00:00]} Kxg6 {[%emt 0:00:04]} 51. Rxh2 {[%emt 0:00:00]} Rxh2 {[%emt 0:00:01]} 52. Ke4 {[%emt 0:00:00]} Kf6 {[%emt 0:01:19]} 53. Ra6 {[%emt 0:00:00]} Rh5 {[%emt 0:00:57]} 54. Ra7 {[%emt 0:02:36]} Rd5 {[%emt 0:00:06]} 55. Rc7 {[%emt 0:00:05]} Kg6 {[%emt 0:00:15]} 56. Re7 {[%emt 0:01:22]} Kf6 {[%emt 0:00:34]} 57. Rc7 {[%emt 0:00:04]} Rd4+ {[%emt 0:00:42]} 58. Ke3 {[%emt 0:00:04]} Rc4 {[%emt 0:00:27]} 59. Kd3 {[%emt 0:00:17]} Rxf4 {[%emt 0:00:05]} 60. Rxc5 {[%emt 0:00:04]} Rf5 {[%emt 0:00:22]} 61. Rc8 {[%emt 0:00:29]} Ra5 {[%emt 0:01:05]} 62. Ke4 {[%emt 0:00:55]} Ra4+ {[%emt 0:00:03]} 63. Ke3 {[%emt 0:00:05]} Kf5 {[%emt 0:01:12]} 64. Rc5+ {[%emt 0:01:55]} e5 {[%emt 0:00:09]} 65. Rc8 {[%emt 0:00:02]} Ra3+ {[%emt 0:00:07]} 66. Ke2 {[%emt 0:00:03]} Kf4 {[%emt 0:00:10]} 67. Rb8 {[%emt 0:01:03]} Ra2+ {[%emt 0:00:34]} 68. Ke1 {[%emt 0:00:03]} e4 {[%emt 0:00:51]} 69. Rb3 {[%emt 0:00:07]} Rg2 {[%emt 0:00:20]} 70. Ra3 {[%emt 0:00:32]} Rc2 {[%emt 0:00:11]} 71. Rb3 {[%emt 0:00:10]} Ke5 {[%emt 0:00:07]} 72. Rg3 {[%emt 0:01:19]} Kd4 {[%emt 0:00:21]} 73. Ra3 {[%emt 0:00:31]} e3 {[%emt 0:00:57]} 74. Ra8 {[%emt 0:00:46]} Rc5 {[%emt 0:01:44]} 75. Rd8+ {[%emt 0:00:07]} Rd5 {[%emt 0:01:01]} 76. Rxd5+ {[%emt 0:00:05]} Kxd5 {[%emt 0:00:02]} 77. Ke2 {[%emt 0:00:05]} Ke4 {[%emt 0:00:05]} 78. Ke1 {[%emt 0:00:03]} Kd3 {[%emt 0:00:07]} 79. Kd1 {[%emt 0:00:03]} e2+ {[%emt 0:00:01]} 80. Ke1 {[%emt 0:00:04]} Ke3 {[%emt 0:00:00]} 1/2-1/2

[Event "81st Georgian Women-ch 2024"]
[Site "Tbilisi"]
[Date "2024.02.11"]
[Round "3.1"]
[White "Donghvani, Nia"]
[Black "Melia, Salome"]
[Result "0-1"]
[ECO "B33"]
[WhiteElo "2036"]
[BlackElo "2355"]
[Annotator "TA"]
[PlyCount "96"]
[EventDate "2024.02.09"]
[EventCountry "GEO"]
[SourceTitle "playchess.com"]
[Source "ChessBase"]
[SourceQuality "1"]
[TimeControl "5400+30"]

{[%evp 19,96,2,3,12,0,12,14,23,8,20,37,26,31,-10,0,0,0,4,20,16,26,-4,12,7,29,11,24,20,28,-120,-63,-35,-57,-159,-79,-276,-274,-256,-266,-1366,-1421,-1227,-1525,-1677,-1549,-1297,0,-1235,-493,-749,-572,-549,-558,-737,-741,-743,-740,-734,-749,-744,-725,-5118,-437,-754,-743,-976,-966,-908,-870,-1025,-740,-977,-734,-29986,-29987,-29992,-29993,-29998,-29999]} 1. e4 {[%emt 0:00:14]} c5 {[%emt 0:00:06]} 2. Nf3 {[%emt 0:00:04]} Nc6 {[%emt 0:00:13]} 3. d4 {[%emt 0:00:04]} cxd4 {[%emt 0:00:04]} 4. Nxd4 {[%emt 0:00:02]} Nf6 {[%emt 0:00:06]} 5. Nc3 {[%emt 0:00:04]} e5 {[%emt 0:00:05]} 6. Ndb5 {[%emt 0:00:03]} d6 {[%emt 0:00:08]} 7. Nd5 {[%emt 0:00:06]} Nxd5 {[%emt 0:00:12]} 8. exd5 {[%emt 0:00:05]} Nb8 {[%emt 0:00:06]} 9. a4 {[%emt 0:00:04]} Be7 {[%emt 0:00:04]} 10. Be2 {[%emt 0:00:03]} O-O {[%emt 0:00:37][%cal Bh8f8,Bf8f6,Bf6h6][%mdl 32]} 11. O-O {[%emt 0:00:26]} Nd7 {[%emt 0:02:14]} 12. Bd2 {[%emt 0:00:09]} a6 {[%emt 0:01:01]} 13. Na3 {[%emt 0:00:03] The position is equal.} f5 {[%emt 0:00:33][%cal Bf7f5,Bf5f4][%mdl 32]} 14. a5 {[%emt 0:00:05]} f4 {[%emt 0:03:39]} 15. Nc4 {[%emt 0:04:39]} Rf6 {[%emt 0:00:24]} 16. f3 {[%emt 0:17:35]} Rh6 {[%emt 0:03:49]} 17. g3 {[%emt 0:06:44]} Qe8 {[%emt 0:07:58]} 18. Rf2 {[%emt 0:04:56]} fxg3 {[%emt 0:03:10]} (18... Rg6 $5) 19. hxg3 {[%emt 0:00:02]} Rh3 {[%emt 0:05:14][%cal Oe8h5]} 20. Rh2 {[%emt 0:06:44]} Rxh2 {[%emt 0:12:53]} (20... Rxg3+ {keeps more tension.} 21. Kf2 Rg6 22. Bd3 Nf6) 21. Kxh2 {[%emt 0:00:01]} Qh5+ {[%emt 0:00:41]} 22. Kg1 {[%emt 0:03:35]} Nf6 {[%emt 0:03:07][%cal Oh5g6]} 23. Nb6 {[%emt 0:02:34]} Rb8 {[%emt 0:01:51]} 24. Ra4 {[%emt 0:06:19] [#]} (24. Nxc8 $11 {remains equal.} Rxc8 25. Be1) 24... Qg6 {[%emt 0:02:19]} (24... Bf5 $1 $17 {Strongly threatening ...Qg6.} 25. Rc4 Qg6) 25. Be1 $1 $15 {[%emt 0:10:58]} Bf5 {[%emt 0:03:29]} 26. Rc4 {[%emt 0:00:25] Black keeps a firm grip on the game.} (26. Bd3 $1 $15) 26... e4 {[%emt 0:01:04]} ({Black should try} 26... Re8 27. Kg2 e4 28. fxe4 Bxe4+ 29. Rxe4 Qxe4+ (29... Nxe4 $2 30. Bh5 $18) 30. Bf3 Qf5) 27. Qd4 $2 {[%emt 0:01:43]} (27. fxe4 $17 {was called for.} Bxe4 28. Bd3) 27... Re8 $19 {[%emt 0:10:32]} 28. Bf2 {[%emt 0:03:14]} Bd8 {[%emt 0:12:33]} 29. f4 $2 {[%emt 0:06:55] [#]} (29. Rc3) 29... e3 $1 {[%emt 0:06:12][%mdl 512] ...Ng4 would now be deadly.} 30. Be1 {[%emt 0:00:22]} (30. Rc3 exf2+) 30... Nh5 {[%emt 0:04:10]} 31. Kh2 {[%emt 0:00:40]} Qh6 {[%emt 0:05:41][%cal Oh5g3]} 32. Kg1 {[%emt 0:00:04]} Qg6 {[%emt 0:04:01]} 33. Kh2 {[%emt 0:00:06]} Bxc2 {[%emt 0:03:20]} (33... Nxg3 $142 34. Bxg3 Qh6+ 35. Kg1 Bh4) 34. Nc8 {[%emt 0:17:47]} (34. Rxc2 $142 Qxc2 35. Qc4 Qxb2 36. Bc3 (36. Na4 $2 Qb1 $19)) 34... Bf5 {[%emt 0:03:24]} 35. Qd1 {[%emt 0:05:27]} Nf6 {[%emt 0:01:07]} 36. Nxd6 {[%emt 0:01:14]} Ng4+ {[%emt 0:00:28]} 37. Kg1 {[%emt 0:01:31]} Nf2 {[%emt 0:00:40]} (37... Qxd6 38. Bxg4 Bxg4 39. Qxg4 $17) 38. Bxf2 {[%emt 0:00:55]} exf2+ {[%emt 0:00:05]} (38... Qxd6 39. Be1 $11) 39. Kxf2 {[%emt 0:00:01]} Qxd6 {[%emt 0:00:18]} 40. Qd2 {[%emt 0:00:00]} Be4 {[%emt 0:00:00]} (40... Bxa5 $142 {( -> ...Qh6)} 41. Qxa5 Qh6) 41. Qe3 {[%emt 0:00:00] [#]} (41. Bh5 $142 Bg6 (41... Qxd5 $2 42. Qxd5+ Bxd5 43. Rd4 $19) 42. Bg4) 41... Qh6 $1 {[%emt 0:00:00]} 42. Bg4 {[%emt 0:00:00]} (42. Rxe4 Qh2+) 42... Qh2+ {[%emt 0:00:00]} 43. Ke1 {[%emt 0:00:00]} Qh1+ {[%emt 0:00:00]} 44. Kf2 {[%emt 0:00:00]} Qg2+ {[%emt 0:00:00]} ({Stronger than} 44... Bxa5 45. Be6+ Rxe6 46. Rc8+ Kf7 47. dxe6+ Kg6 (47... Kxe6 48. Re8+ Kf7 49. Qxe4 $11) 48. f5+ Kh5 (48... Kxf5 49. Rc5+ Kxe6 50. Rxa5 $14) (48... Bxf5 49. e7 $11) 49. Qe2+ Kg5 50. Qe3+ Kh5 51. Qe2+ Kg5 52. Qe3+ Kh5 $11) 45. Ke1 {[%emt 0:00:00]} Qxb2 {[%emt 0:00:00]} 46. Be6+ {[%emt 0:00:00] [#]} Rxe6 $1 {[%emt 0:00:00] Black mates.} 47. dxe6 {[%emt 0:00:00]} (47. Rc8 Bxd5) 47... Bxa5+ {[%emt 0:00:00]} 48. Kd1 {[%emt 0:00:00] [#]} Bf3+ $1 {[%emt 0:00:00][%mdl 512] Weighted Error Value: White=0.97/Black=0.74.  Loses game:     	White=1     	---        Mistake:       	White=4     	Black=2      Inaccurate:     	White=4     	---        OK:         	White=10    	Black=8      Best:        	---       	Black=1      Strong:       	White=1     	---        Brilliant:      	---       	Black=1} 0-1